[Event "RUS-ch Blitz 2021"]
[Site "Sochi"]
[Date "2021.10.11"]
[Round "8.23"]
[White "Smagin, Sergey"]
[Black "Nozdrachev, Vladislav"]
[Result "1-0"]
[ECO "C26"]
[WhiteElo "2551"]
[BlackElo "2495"]
[Annotator "ChessBase"]
[PlyCount "141"]
[EventDate "2021.10.11"]
[EventType "blitz"]
[EventCountry "RUS"]
[SourceTitle "playchess.com"]
[Source "ChessBase"]
[SourceQuality "1"]
[TimeControl "180+2"]

1. e4 {[%emt 0:00:06]} e5 {[%emt 0:00:00]} 2. Nc3 {[%emt 0:00:00]} Nf6 {
[%emt 0:00:11]} 3. g3 {[%emt 0:00:00]} Bc5 {[%emt 0:00:09]} 4. Bg2 {[%emt 0:00:
00]} h5 {[%emt 0:00:03]} 5. h3 {[%emt 0:00:11]} Nc6 {[%emt 0:00:00]} 6. Nge2 {
[%emt 0:00:01]} d6 {[%emt 0:00:13]} 7. Na4 {[%emt 0:00:02]} h4 {[%emt 0:00:09]}
8. g4 {[%emt 0:00:04]} Nd4 {[%emt 0:00:45]} 9. c3 {[%emt 0:00:08]} Ne6 {
[%emt 0:00:21]} 10. d4 {[%emt 0:00:09]} exd4 {[%emt 0:00:13]} 11. cxd4 {
[%emt 0:00:02]} Bb4+ {[%emt 0:00:00]} 12. Nac3 {[%emt 0:00:03]} O-O {[%emt 0:
00:19]} 13. O-O {[%emt 0:00:11]} c6 {[%emt 0:00:07]} 14. f4 {[%emt 0:00:07]} c5
{[%emt 0:00:06]} 15. a3 {[%emt 0:00:26]} Ba5 {[%emt 0:00:11]} 16. dxc5 {
[%emt 0:00:09]} dxc5 {[%emt 0:00:04]} 17. Qxd8 {[%emt 0:00:00]} Rxd8 {[%emt 0:
00:00]} 18. e5 {[%emt 0:00:09]} Nh7 {[%emt 0:00:06]} 19. Be3 {[%emt 0:00:10]}
Nd4 {[%emt 0:00:05]} 20. Rad1 {[%emt 0:00:05]} Bb6 {[%emt 0:00:05]} 21. Bf2 {
[%emt 0:00:12]} Be6 {[%emt 0:00:00]} 22. Bxh4 {[%emt 0:00:11]} g5 {[%emt 0:00:
07]} 23. fxg5 {[%emt 0:00:09]} Bb3 {[%emt 0:00:06]} 24. Rc1 {[%emt 0:00:56]}
Re8 {[%emt 0:00:00]} 25. Bg3 {[%emt 0:00:13]} Nxg5 {[%emt 0:00:07]} 26. Nxd4 {
[%emt 0:00:04]} cxd4 {[%emt 0:00:01]} 27. Nd5 {[%emt 0:00:02]} Bxd5 {[%emt 0:
00:06]} 28. Bxd5 {[%emt 0:00:00]} d3+ {[%emt 0:00:04]} 29. Kg2 {[%emt 0:00:01]}
Rad8 {[%emt 0:00:00]} 30. Bb3 {[%emt 0:00:03]} d2 {[%emt 0:00:00]} 31. Rcd1 {
[%emt 0:00:00]} Be3 {[%emt 0:00:08]} 32. Bf4 {[%emt 0:00:00]} Rd3 {[%emt 0:00:
07]} 33. Bxg5 {[%emt 0:00:00]} Rxb3 {[%emt 0:00:04]} 34. Bxe3 {[%emt 0:00:07]}
Rxe3 {[%emt 0:00:00]} 35. Rxd2 {[%emt 0:00:00]} R3xe5 {[%emt 0:00:00]} 36. Rdf2
{[%emt 0:00:01]} R8e7 {[%emt 0:00:00]} 37. Rd1 {[%emt 0:00:00]} a5 {[%emt 0:00:
04]} 38. Rd4 {[%emt 0:00:01]} Kg7 {[%emt 0:00:00]} 39. Rdf4 {[%emt 0:00:00]}
Rb5 {[%emt 0:00:01]} 40. Rf5 {[%emt 0:00:02]} Rxf5 {[%emt 0:00:05]} 41. Rxf5 {
[%emt 0:00:00]} Re2+ {[%emt 0:00:00]} 42. Rf2 {[%emt 0:00:00]} Re3 {[%emt 0:00:
00]} 43. h4 {[%emt 0:00:08]} Rb3 {[%emt 0:00:00]} 44. Kf1 {[%emt 0:00:06]} f6 {
[%emt 0:00:05]} 45. Ke1 {[%emt 0:00:00]} b6 {[%emt 0:00:00]} 46. Kd1 {[%emt 0:
00:06]} Rh3 {[%emt 0:00:09]} 47. h5 {[%emt 0:00:02]} Rg3 {[%emt 0:00:03]} 48.
Rf4 {[%emt 0:00:02]} Rg2 {[%emt 0:00:03]} 49. Kc1 {[%emt 0:00:00]} Kf7 {
[%emt 0:00:04]} 50. Kb1 {[%emt 0:00:02]} Ke6 {[%emt 0:00:02]} 51. Ka2 {[%emt 0:
00:01]} Ke7 {[%emt 0:00:04]} 52. Kb3 {[%emt 0:00:01]} Ke6 {[%emt 0:00:01]} 53.
Kc3 {[%emt 0:00:01]} Ke7 {[%emt 0:00:03]} 54. b3 {[%emt 0:00:02]} b5 {[%emt 0:
00:02]} 55. a4 {[%emt 0:00:05]} b4+ {[%emt 0:00:01]} 56. Kc4 {[%emt 0:00:00]}
Rg3 {[%emt 0:00:00]} 57. Re4+ {[%emt 0:00:04]} Kd6 {[%emt 0:00:03]} 58. Rd4+ {
[%emt 0:00:02]} Kc6 {[%emt 0:00:00]} 59. Rf4 {[%emt 0:00:00]} Rc3+ {[%emt 0:00:
05]} 60. Kd4 {[%emt 0:00:00]} Rxb3 {[%emt 0:00:00]} 61. Rxf6+ {[%emt 0:00:00]}
Kd7 {[%emt 0:00:03]} 62. h6 {[%emt 0:00:03]} Rh3 {[%emt 0:00:01]} 63. g5 {
[%emt 0:00:00]} b3 {[%emt 0:00:05]} 64. Rb6 {[%emt 0:00:02]} Ke7 {[%emt 0:00:
00]} 65. Ke5 {[%emt 0:00:02]} Rh4 {[%emt 0:00:06]} 66. Rb7+ {[%emt 0:00:01]}
Kf8 {[%emt 0:00:00]} 67. Rxb3 {[%emt 0:00:01]} Rxa4 {[%emt 0:00:02]} 68. Kf6 {
[%emt 0:00:00]} Rf4+ {[%emt 0:00:04]} 69. Kg6 {[%emt 0:00:01]} Ke7 {[%emt 0:00:
01]} 70. h7 {[%emt 0:00:02]} Rh4 {[%emt 0:00:01]} 71. Rb8 {[%emt 0:00:01]} 1-0

[Event "RUS-ch Blitz 2021"]
[Site "Sochi"]
[Date "2021.10.11"]
[Round "8.24"]
[White "Nesterov, Arseniy"]
[Black "Ivlev, Aleksey"]
[Result "1-0"]
[ECO "D45"]
[WhiteElo "2514"]
[BlackElo "2315"]
[Annotator "ChessBase"]
[PlyCount "43"]
[EventDate "2021.10.11"]
[EventType "blitz"]
[EventCountry "RUS"]
[SourceTitle "playchess.com"]
[Source "ChessBase"]
[SourceQuality "1"]
[TimeControl "180+2"]

1. d4 {[%emt 0:00:00]} d5 {[%emt 0:00:06]} 2. c4 {[%emt 0:00:01]} c6 {[%emt 0:
00:00]} 3. Nf3 {[%emt 0:00:00]} Nf6 {[%emt 0:00:00]} 4. Nc3 {[%emt 0:00:00]} e6
{[%emt 0:00:10]} 5. e3 {[%emt 0:00:00]} Nbd7 {[%emt 0:00:00]} 6. Qc2 {[%emt 0:
00:00]} Bd6 {[%emt 0:00:00]} 7. b3 {[%emt 0:00:13]} Qe7 {[%emt 0:00:00]} 8. Be2
{[%emt 0:00:00]} O-O {[%emt 0:00:04]} 9. O-O {[%emt 0:00:01]} b6 {[%emt 0:00:
02]} 10. Bb2 {[%emt 0:00:00]} Bb7 {[%emt 0:00:00]} 11. Rad1 {[%emt 0:00:03]}
Rad8 {[%emt 0:00:07]} 12. Rfe1 {[%emt 0:00:04]} Rfe8 {[%emt 0:00:07]} 13. Bf1 {
[%emt 0:00:00]} a6 {[%emt 0:00:18]} 14. e4 {[%emt 0:00:10]} e5 {[%emt 0:00:37]}
15. exd5 {[%emt 0:00:12]} cxd5 {[%emt 0:00:01]} 16. dxe5 {[%emt 0:00:12]} Nxe5
{[%emt 0:00:07]} 17. Nxe5 {[%emt 0:00:26]} Bxe5 {[%emt 0:00:00]} 18. Nxd5 {
[%emt 0:00:30]} Bxh2+ {[%emt 0:00:00]} 19. Kxh2 {[%emt 0:00:03]} Ng4+ {[%emt 0:
00:35]} 20. Kg3 {[%emt 0:00:11]} Qg5 {[%emt 0:00:35]} 21. Ne7+ {[%emt 0:00:34]}
Kh8 {[%emt 0:00:00]} 22. Qf5 {[%emt 0:00:04]} 1-0

[Event "RUS-ch Blitz 2021"]
[Site "Sochi"]
[Date "2021.10.11"]
[Round "9.2"]
[White "Iljiushenok, Ilia"]
[Black "Antipov, Mikhail Al."]
[Result "0-1"]
[ECO "C30"]
[WhiteElo "2554"]
[BlackElo "2619"]
[Annotator "ChessBase"]
[PlyCount "64"]
[EventDate "2021.10.11"]
[EventType "blitz"]
[EventCountry "RUS"]
[SourceTitle "playchess.com"]
[Source "ChessBase"]
[SourceQuality "1"]
[TimeControl "180+2"]

1. e4 {[%emt 0:00:00]} e5 {[%emt 0:00:00]} 2. Nc3 {[%emt 0:00:10]} Nc6 {
[%emt 0:00:01]} 3. Bc4 {[%emt 0:00:00]} Nf6 {[%emt 0:00:00]} 4. d3 {[%emt 0:00:
00]} Bc5 {[%emt 0:00:00]} 5. f4 {[%emt 0:00:04]} d6 {[%emt 0:00:07]} 6. Nf3 {
[%emt 0:00:00]} a6 {[%emt 0:00:13]} 7. Nd5 {[%emt 0:00:06]} h6 {[%emt 0:00:19]}
8. c3 {[%emt 0:00:16]} Be6 {[%emt 0:00:16]} 9. b4 {[%emt 0:00:19]} Ba7 {
[%emt 0:00:02]} 10. a4 {[%emt 0:00:11]} O-O {[%emt 0:01:03]} 11. Qb3 {[%emt 0:
00:28]} exf4 {[%emt 0:00:55]} 12. Bxf4 {[%emt 0:00:00]} Nb8 {[%emt 0:00:08]}
13. Bg3 {[%emt 0:00:35]} Bxd5 {[%emt 0:00:07]} 14. Bxd5 {[%emt 0:00:03]} c6 {
[%emt 0:00:02]} 15. Bxf7+ {[%emt 0:00:37]} Rxf7 {[%emt 0:00:00]} 16. e5 {
[%emt 0:00:00]} Nd5 {[%emt 0:00:13]} 17. exd6 {[%emt 0:00:00]} Nd7 {[%emt 0:00:
04]} 18. O-O-O {[%emt 0:00:04]} a5 {[%emt 0:00:00]} 19. b5 {[%emt 0:00:05]}
Be3+ {[%emt 0:00:04]} 20. Kb2 {[%emt 0:00:05]} Nc5 {[%emt 0:00:00]} 21. Qc4 {
[%emt 0:00:04]} Nb6 {[%emt 0:00:00]} 22. Qg4 {[%emt 0:00:05]} Nbxa4+ {[%emt 0:
00:05]} 23. Ka3 {[%emt 0:00:00]} cxb5 {[%emt 0:00:04]} 24. Ne5 {[%emt 0:00:00]}
b4+ {[%emt 0:00:04]} 25. Ka2 {[%emt 0:00:00]} Nxc3+ {[%emt 0:00:03]} 26. Ka1 {
[%emt 0:00:00]} a4 {[%emt 0:00:02]} 27. Nxf7 {[%emt 0:00:00]} Qf6 {[%emt 0:00:
02]} 28. Ne5 {[%emt 0:00:04]} Bd4 {[%emt 0:00:00]} 29. Qxd4 {[%emt 0:00:05]}
Nb3+ {[%emt 0:00:00]} 30. Kb2 {[%emt 0:00:00]} Nxd4 {[%emt 0:00:00]} 31. d7 {
[%emt 0:00:00]} a3+ {[%emt 0:00:04]} 32. Kc1 {[%emt 0:00:00]} Qg5+ {[%emt 0:00:
00]} 0-1

[Event "RUS-ch Blitz 2021"]
[Site "Sochi"]
[Date "2021.10.11"]
[Round "9.3"]
[White "Savchenko, Boris"]
[Black "Timofeev, Artyom"]
[Result "0-1"]
[ECO "C42"]
[WhiteElo "2535"]
[BlackElo "2586"]
[Annotator "ChessBase"]
[PlyCount "69"]
[EventDate "2021.10.11"]
[EventType "blitz"]
[EventCountry "RUS"]
[SourceTitle "playchess.com"]
[Source "ChessBase"]
[SourceQuality "1"]
[TimeControl "180+2"]

1. e4 {[%emt 0:00:00]} e5 {[%emt 0:00:00]} 2. Nf3 {[%emt 0:00:11]} Nf6 {
[%emt 0:00:02]} 3. Nxe5 {[%emt 0:00:00]} d6 {[%emt 0:00:00]} 4. Nf3 {[%emt 0:
00:00]} Nxe4 {[%emt 0:00:00]} 5. Nc3 {[%emt 0:00:04]} Nxc3 {[%emt 0:00:05]} 6.
dxc3 {[%emt 0:00:00]} Be7 {[%emt 0:00:00]} 7. Bf4 {[%emt 0:00:00]} Nc6 {
[%emt 0:00:12]} 8. Qd2 {[%emt 0:00:00]} Be6 {[%emt 0:00:02]} 9. O-O-O {[%emt 0:
00:08]} Qd7 {[%emt 0:00:00]} 10. h4 {[%emt 0:00:08]} a6 {[%emt 0:00:35]} 11.
Ng5 {[%emt 0:00:14]} Bxg5 {[%emt 0:00:03]} 12. hxg5 {[%emt 0:00:05]} O-O-O {
[%emt 0:00:00]} 13. f3 {[%emt 0:00:20]} Kb8 {[%emt 0:00:18]} 14. b3 {[%emt 0:
00:07]} Rde8 {[%emt 0:00:04]} 15. a4 {[%emt 0:00:12]} Qe7 {[%emt 0:00:25]} 16.
Kb2 {[%emt 0:00:08]} f6 {[%emt 0:00:05]} 17. gxf6 {[%emt 0:00:58]} Qxf6 {
[%emt 0:00:05]} 18. Bg3 {[%emt 0:00:06]} h6 {[%emt 0:00:01]} 19. Rh4 {[%emt 0:
00:13]} g5 {[%emt 0:00:08]} 20. Re4 {[%emt 0:00:02]} Bf5 {[%emt 0:00:06]} 21.
Ree1 {[%emt 0:00:00]} h5 {[%emt 0:00:06]} 22. Bf2 {[%emt 0:00:09]} g4 {[%emt 0:
00:06]} 23. Be2 {[%emt 0:00:09]} Qg6 {[%emt 0:00:21]} 24. Bh4 {[%emt 0:00:10]}
Ne5 {[%emt 0:00:14]} 25. f4 {[%emt 0:00:06]} Nd7 {[%emt 0:00:00]} 26. Bc4 {
[%emt 0:00:04]} Nc5 {[%emt 0:00:06]} 27. a5 {[%emt 0:00:00]} Rxe1 {[%emt 0:00:
12]} 28. Rxe1 {[%emt 0:00:05]} Re8 {[%emt 0:00:00]} 29. Rd1 {[%emt 0:00:08]}
Qg7 {[%emt 0:00:09]} 30. Bf2 {[%emt 0:00:01]} Bc8 {[%emt 0:00:15]} 31. Bd4 {
[%emt 0:00:03]} Qg6 {[%emt 0:00:00]} 32. Qf2 {[%emt 0:00:02]} g3 {[%emt 0:00:
02]} 33. Qf3 {[%emt 0:00:02]} h4 {[%emt 0:00:06]} 34. Rh1 {[%emt 0:00:01]} Bg4
{[%emt 0:00:06]} 35. Qf1 {[%emt 0:00:00]} 0-1

[Event "RUS-ch Blitz 2021"]
[Site "Sochi"]
[Date "2021.10.11"]
[Round "9.4"]
[White "Petrov, Nikita"]
[Black "Rozum, Ivan"]
[Result "1-0"]
[ECO "E11"]
[WhiteElo "2539"]
[BlackElo "2529"]
[Annotator "ChessBase"]
[PlyCount "79"]
[EventDate "2021.10.11"]
[EventType "blitz"]
[EventCountry "RUS"]
[SourceTitle "playchess.com"]
[Source "ChessBase"]
[SourceQuality "1"]
[TimeControl "180+2"]

1. d4 {[%emt 0:00:00]} Nf6 {[%emt 0:00:00]} 2. c4 {[%emt 0:00:00]} e6 {[%emt 0:
00:07]} 3. Nf3 {[%emt 0:00:04]} Bb4+ {[%emt 0:00:00]} 4. Nbd2 {[%emt 0:00:00]}
b6 {[%emt 0:00:00]} 5. a3 {[%emt 0:00:00]} Bxd2+ {[%emt 0:00:00]} 6. Bxd2 {
[%emt 0:00:15]} Bb7 {[%emt 0:00:00]} 7. Bg5 {[%emt 0:00:00]} h6 {[%emt 0:00:00]
} 8. Bh4 {[%emt 0:00:00]} d6 {[%emt 0:00:00]} 9. e3 {[%emt 0:00:01]} Nbd7 {
[%emt 0:00:02]} 10. Bd3 {[%emt 0:00:09]} g5 {[%emt 0:00:03]} 11. Bg3 {[%emt 0:
00:00]} Ne4 {[%emt 0:00:06]} 12. Qc2 {[%emt 0:00:15]} Ndf6 {[%emt 0:00:34]} 13.
O-O-O {[%emt 0:00:26]} Qe7 {[%emt 0:00:15]} 14. Kb1 {[%emt 0:00:12]} O-O-O {
[%emt 0:00:05]} 15. Rc1 {[%emt 0:00:28]} Kb8 {[%emt 0:00:04]} 16. Ka1 {[%emt 0:
00:02]} h5 {[%emt 0:00:30]} 17. h4 {[%emt 0:00:04]} g4 {[%emt 0:00:06]} 18. Ng5
{[%emt 0:00:03]} Nxg3 {[%emt 0:00:17]} 19. fxg3 {[%emt 0:00:00]} Rdf8 {[%emt 0:
00:07]} 20. Rhf1 {[%emt 0:00:11]} Nd7 {[%emt 0:00:04]} 21. Ne4 {[%emt 0:00:43]}
e5 {[%emt 0:00:23]} 22. Nc3 {[%emt 0:00:05]} exd4 {[%emt 0:00:07]} 23. exd4 {
[%emt 0:00:03]} Qe3 {[%emt 0:00:02]} 24. Be4 {[%emt 0:00:23]} Qxd4 {[%emt 0:00:
08]} 25. Bxb7 {[%emt 0:00:00]} Kxb7 {[%emt 0:00:00]} 26. Nb5 {[%emt 0:00:04]}
Qe5 {[%emt 0:00:27]} 27. Rf5 {[%emt 0:00:04]} Qxg3 {[%emt 0:00:04]} 28. Qa4 {
[%emt 0:00:10]} a6 {[%emt 0:00:09]} 29. Nd4 {[%emt 0:00:04]} Nc5 {[%emt 0:00:
06]} 30. Qc6+ {[%emt 0:00:00]} Kb8 {[%emt 0:00:00]} 31. Qd5 {[%emt 0:00:07]}
Qd3 {[%emt 0:00:11]} 32. Rc3 {[%emt 0:00:00]} Qd1+ {[%emt 0:00:03]} 33. Ka2 {
[%emt 0:00:04]} Qe1 {[%emt 0:00:03]} 34. Nc6+ {[%emt 0:00:01]} Kc8 {[%emt 0:00:
03]} 35. Nb4 {[%emt 0:00:09]} Qe6 {[%emt 0:00:04]} 36. Qa8+ {[%emt 0:00:00]}
Kd7 {[%emt 0:00:00]} 37. Qc6+ {[%emt 0:00:00]} Kc8 {[%emt 0:00:00]} 38. Qa8+ {
[%emt 0:00:00]} Kd7 {[%emt 0:00:00]} 39. Qc6+ {[%emt 0:00:07]} Kc8 {[%emt 0:00:
00]} 40. Nd5 {[%emt 0:00:02]} 1-0

[Event "RUS-ch Blitz 2021"]
[Site "Sochi"]
[Date "2021.10.11"]
[Round "9.5"]
[White "Sarana, Alexey"]
[Black "Khanin, Semen"]
[Result "1/2-1/2"]
[ECO "D37"]
[WhiteElo "2649"]
[BlackElo "2521"]
[Annotator "ChessBase"]
[PlyCount "161"]
[EventDate "2021.10.11"]
[EventType "blitz"]
[EventCountry "RUS"]
[SourceTitle "playchess.com"]
[Source "ChessBase"]
[SourceQuality "1"]
[TimeControl "180+2"]

1. d4 {[%emt 0:00:00]} Nf6 {[%emt 0:00:00]} 2. c4 {[%emt 0:00:00]} e6 {[%emt 0:
00:00]} 3. Nf3 {[%emt 0:00:00]} d5 {[%emt 0:00:19]} 4. Nc3 {[%emt 0:00:04]}
Nbd7 {[%emt 0:00:00]} 5. Bf4 {[%emt 0:00:00]} dxc4 {[%emt 0:00:00]} 6. e3 {
[%emt 0:00:00]} Nb6 {[%emt 0:00:00]} 7. Bxc4 {[%emt 0:00:00]} Bd6 {[%emt 0:00:
00]} 8. Bg3 {[%emt 0:00:18]} Nxc4 {[%emt 0:00:00]} 9. Qa4+ {[%emt 0:00:00]} Bd7
{[%emt 0:00:00]} 10. Qxc4 {[%emt 0:00:00]} Bc6 {[%emt 0:00:01]} 11. Ne5 {
[%emt 0:00:00]} Bxe5 {[%emt 0:00:00]} 12. Bxe5 {[%emt 0:00:06]} Nd7 {[%emt 0:
00:46]} 13. Bf4 {[%emt 0:00:34]} Nb6 {[%emt 0:00:15]} 14. Qc5 {[%emt 0:00:00]}
Nd7 {[%emt 0:00:40]} 15. Qh5 {[%emt 0:00:37]} O-O {[%emt 0:00:17]} 16. O-O {
[%emt 0:00:00]} Nf6 {[%emt 0:00:01]} 17. Qe5 {[%emt 0:00:00]} Rc8 {[%emt 0:00:
11]} 18. e4 {[%emt 0:00:25]} Nd7 {[%emt 0:00:13]} 19. Qa5 {[%emt 0:00:17]} b6 {
[%emt 0:00:00]} 20. Qb4 {[%emt 0:00:07]} a5 {[%emt 0:00:05]} 21. Qc4 {[%emt 0:
00:00]} Bb7 {[%emt 0:00:04]} 22. Rfd1 {[%emt 0:00:01]} Qe7 {[%emt 0:00:06]} 23.
Rac1 {[%emt 0:00:18]} e5 {[%emt 0:00:00]} 24. dxe5 {[%emt 0:00:13]} Nxe5 {
[%emt 0:00:08]} 25. Nd5 {[%emt 0:00:08]} Bxd5 {[%emt 0:00:18]} 26. Qxd5 {
[%emt 0:00:00]} Ng6 {[%emt 0:00:00]} 27. Bg3 {[%emt 0:00:03]} Rfe8 {[%emt 0:00:
00]} 28. f3 {[%emt 0:00:05]} h6 {[%emt 0:00:17]} 29. a3 {[%emt 0:00:00]} Qf6 {
[%emt 0:00:06]} 30. Qd4 {[%emt 0:00:24]} Qe7 {[%emt 0:00:00]} 31. Qc3 {[%emt 0:
00:08]} h5 {[%emt 0:00:15]} 32. Bxc7 {[%emt 0:00:00]} h4 {[%emt 0:00:00]} 33.
Qc6 {[%emt 0:00:12]} Qg5 {[%emt 0:00:03]} 34. Qd5 {[%emt 0:00:00]} Qf6 {
[%emt 0:00:00]} 35. Qd4 {[%emt 0:00:00]} Qg5 {[%emt 0:00:05]} 36. Qd2 {[%emt 0:
00:03]} Qf6 {[%emt 0:00:00]} 37. h3 {[%emt 0:00:00]} Qe6 {[%emt 0:00:04]} 38.
Bh2 {[%emt 0:00:09]} Rxc1 {[%emt 0:00:00]} 39. Rxc1 {[%emt 0:00:02]} Qf6 {
[%emt 0:00:00]} 40. Kh1 {[%emt 0:00:00]} Kh7 {[%emt 0:00:00]} 41. Bg1 {[%emt 0:
00:06]} Rd8 {[%emt 0:00:03]} 42. Qe1 {[%emt 0:00:00]} Nf4 {[%emt 0:00:06]} 43.
e5 {[%emt 0:00:00]} Qg5 {[%emt 0:00:00]} 44. Rc2 {[%emt 0:00:02]} Nd3 {[%emt 0:
00:05]} 45. Qe4+ {[%emt 0:00:01]} g6 {[%emt 0:00:00]} 46. Be3 {[%emt 0:00:00]}
Qg3 {[%emt 0:00:00]} 47. Qg4 {[%emt 0:00:10]} Nxe5 {[%emt 0:00:03]} 48. Qxg3 {
[%emt 0:00:03]} hxg3 {[%emt 0:00:00]} 49. Rc1 {[%emt 0:00:00]} b5 {[%emt 0:00:
04]} 50. Kg1 {[%emt 0:00:02]} Nc4 {[%emt 0:00:00]} 51. Bf4 {[%emt 0:00:01]}
Nxb2 {[%emt 0:00:03]} 52. Bxg3 {[%emt 0:00:00]} b4 {[%emt 0:00:01]} 53. axb4 {
[%emt 0:00:01]} axb4 {[%emt 0:00:01]} 54. Rc7 {[%emt 0:00:02]} Rd1+ {[%emt 0:
00:03]} 55. Kh2 {[%emt 0:00:08]} b3 {[%emt 0:00:07]} 56. Rxf7+ {[%emt 0:00:00]}
Kg8 {[%emt 0:00:00]} 57. Rb7 {[%emt 0:00:00]} Rd3 {[%emt 0:00:01]} 58. Be5 {
[%emt 0:00:02]} Nc4 {[%emt 0:00:00]} 59. Bf6 {[%emt 0:00:04]} Rd6 {[%emt 0:00:
00]} 60. Bc3 {[%emt 0:00:00]} Rb6 {[%emt 0:00:04]} 61. Rg7+ {[%emt 0:00:03]}
Kf8 {[%emt 0:00:00]} 62. Rc7 {[%emt 0:00:03]} b2 {[%emt 0:00:03]} 63. Rc8+ {
[%emt 0:00:03]} Kf7 {[%emt 0:00:00]} 64. Rc7+ {[%emt 0:00:00]} Ke6 {[%emt 0:00:
00]} 65. Bxb2 {[%emt 0:00:01]} Nxb2 {[%emt 0:00:02]} 66. h4 {[%emt 0:00:00]}
Nd3 {[%emt 0:00:02]} 67. Kg3 {[%emt 0:00:01]} Kf6 {[%emt 0:00:02]} 68. Rc3 {
[%emt 0:00:00]} Ne5 {[%emt 0:00:02]} 69. Rc5 {[%emt 0:00:02]} Nf7 {[%emt 0:00:
03]} 70. Ra5 {[%emt 0:00:00]} Nd6 {[%emt 0:00:00]} 71. Kh3 {[%emt 0:00:05]} Nf5
{[%emt 0:00:00]} 72. Ra4 {[%emt 0:00:02]} Rb1 {[%emt 0:00:03]} 73. Kh2 {
[%emt 0:00:01]} Rd1 {[%emt 0:00:02]} 74. Ra6+ {[%emt 0:00:01]} Kg7 {[%emt 0:00:
01]} 75. Ra7+ {[%emt 0:00:04]} Kh6 {[%emt 0:00:00]} 76. Ra4 {[%emt 0:00:05]}
Rd4 {[%emt 0:00:05]} 77. Rxd4 {[%emt 0:00:02]} Nxd4 {[%emt 0:00:01]} 78. Kh3 {
[%emt 0:00:01]} Kg7 {[%emt 0:00:04]} 79. Kg4 {[%emt 0:00:03]} Nf5 {[%emt 0:00:
04]} 80. h5 {[%emt 0:00:01]} Ne3+ {[%emt 0:00:08]} 81. Kg5 {[%emt 0:00:02]}
1/2-1/2